bitfinex/quotes_SOLUSD_20250806
["timestamp","ask_amount","ask_price","bid_price","bid_amount"]
[1754485055165,47.92059545,163.42,163.41,0.06]
[1754485057190,58.52434548,163.42,163.41,0.06]
[1754485057996,52.40514343,163.42,163.41,0.06]
[1754485058591,47.92059545,163.42,163.41,0.06]
[1754485058780,52.40514343,163.42,163.41,0.06]
[1754485059501,4.08059545,163.42,163.41,0.06]
[1754485059672,47.24059545,163.42,163.41,0.06]
[1754485060965,58.56434548,163.42,163.41,0.06]
[1754485062303,54.0797975,163.42,163.41,0.06]
[1754485062984,47.96059545,163.42,163.41,0.06]
[1754485065987,54.0797975,163.42,163.41,0.06]
[1754485066177,58.56434548,163.42,163.41,0.06]
[1754485066373,47.24059545,163.42,163.41,0.75]
[1754485066795,47.24059545,163.42,163.41,0.06]
[1754485072185,47.96059545,163.42,163.41,0.06]
[1754485073211,47.24059545,163.42,163.41,0.06]
[1754485073504,47.24059545,163.42,163.41,5.23454798]
[1754485073505,47.22059545,163.42,163.41,5.23454798]
[1754485073804,4.08059545,163.42,163.41,11.3541245]
[1754485075828,4.08059545,163.42,163.41,88.76034007]
[1754485076682,0.03,163.45,163.41,104.34360452]
[1754485077013,4.10171726,163.44,163.43,15.10621557]
[1754485077186,4.10171726,163.44,163.43,20.28076355]
[1754485077701,4.10171726,163.44,163.43,26.39959118]
[1754485078728,4.10171726,163.44,163.43,26.68391432]
[1754485080919,0.03,163.45,163.43,26.68391432]
[1754485081108,0.03,163.45,163.44,4.48454798]
[1754485081306,4.13614066,163.45,163.44,5.17454798]
[1754485082505,4.13614066,163.45,163.44,11.29300123]
[1754485085099,4.13614066,163.45,163.44,6.80845325]
[1754485085321,4.85614066,163.45,163.43,62.3]
[1754485085507,4.82614066,163.44,163.43,62.3]
[1754485086128,4.82614066,163.44,163.43,66.78454798]
[1754485086129,4.10614066,163.44,163.43,66.78454798]
[1754485086496,4.82614066,163.44,163.43,66.78454798]
[1754485086694,4.82614066,163.44,163.43,62.3]
[1754485089127,4.82614066,163.44,163.42,4.48454798]
[1754485089316,0.72,163.44,163.42,4.48454798]
[1754485090035,0.03,163.45,163.43,4.48454798]
[1754485090198,4.09804983,163.44,163.43,4.48454798]
[1754485091101,4.81804983,163.44,163.42,4.48454798]
[1754485091324,0.72,163.43,163.41,10.66399123]
[1754485093232,0.72,163.43,163.42,4.48454798]
[1754485093431,4.81500076,163.43,163.42,4.48454798]
[1754485093633,4.09500076,163.43,163.42,4.48454798]
[1754485093819,4.09500076,163.43,163.41,6.17944325]
[1754485094119,0.72,163.44,163.42,4.48454798]
[1754485094321,4.09503927,163.43,163.42,4.48454798]
[1754485094631,4.81503927,163.43,163.42,4.48454798]
[1754485095036,4.09503927,163.43,163.42,4.48454798]
[1754485095219,4.09503927,163.43,163.41,0.06]
[1754485095220,30.81503927,163.43,163.41,0.06]
[1754485095535,4.09503927,163.42,163.41,5.23454798]
[1754485096027,4.09503927,163.42,163.41,4.54454798]
[1754485101822,4.81503927,163.42,163.41,0.06]
[1754485102437,10.93424132,163.42,163.41,0.06]
[1754485103014,15.4187893,163.42,163.41,0.06]
[1754485103617,4.81503927,163.42,163.41,0.06]
[1754485106024,10.93424132,163.42,163.41,0.06]
[1754485107125,4.81503927,163.42,163.41,0.06]
[1754485116555,4.09503927,163.42,163.41,0.06]
[1754485118042,4.79503927,163.42,163.41,0.06]
[1754485123978,4.79503927,163.42,163.41,2.94054407]
[1754485123979,4.09503927,163.42,163.41,2.94054407]
[1754485124185,4.09503927,163.42,163.41,24.85633616]
[1754485124344,0.03,163.43,163.41,24.85633616]
[1754485124550,0.03,163.43,163.42,18.96108278]
[1754485124740,4.09826358,163.48,163.46,26.0]
[1754485124934,5.1288586,163.51,163.47,18.67675964]
[1754485124935,4.09865544,163.5,163.47,18.67675964]
[1754485125142,0.03,163.51,163.49,2.88054407]
[1754485125340,4.09891222,163.5,163.48,0.69]
[1754485125537,47.87891222,163.49,163.45,3.57054407]
[1754485125760,4.79587162,163.48,163.41,0.06]
[1754485125934,2.88054407,163.44,163.41,0.06]
[1754485126262,43.08,163.43,163.41,0.06]
[1754485126451,43.78,163.43,163.41,0.06]
[1754485126660,47.58127843,163.43,163.41,0.06]
[1754485126850,0.7,163.42,163.41,0.06]
[1754485127256,4.7945853,163.42,163.41,0.06]
[1754485127845,4.7945853,163.42,163.41,5.25127843]
[1754485127846,4.0945853,163.42,163.41,5.25127843]
[1754485128050,4.0945853,163.42,163.41,20.357494]
[1754485128353,43.08,163.43,163.41,26.47670138]
[1754485128556,43.08,163.43,163.41,21.97542295]
[1754485128759,43.08,163.43,163.41,26.47670138]
[1754485128938,43.08,163.43,163.41,21.97542295]
[1754485129134,43.08,163.43,163.41,21.28542295]
[1754485129365,43.08,163.43,163.41,25.78670138]
[1754485129566,43.08,163.43,163.42,4.50127843]
[1754485129867,47.17634757,163.43,163.41,10.68048581]
[1754485130056,43.08,163.43,163.42,5.19127843]
[1754485130253,47.17646215,163.43,163.42,5.19127843]
[1754485130457,47.17646215,163.43,163.42,4.50127843]
[1754485131259,47.17646215,163.43,163.42,0.69]
[1754485131459,47.17646215,163.43,163.42,4.50127843]
[1754485131666,47.87646215,163.43,163.41,72.98048581]
[1754485131862,43.08,163.43,163.41,72.98048581]
[1754485132758,4.09580781,163.42,163.41,72.98048581]
[1754485133173,4.09580781,163.42,163.41,73.67048581]
[1754485133377,4.0958042,163.42,163.41,69.16920738]
[1754485134051,4.0958042,163.42,163.41,73.67048581]
[1754485135758,4.0958042,163.42,163.41,88.77670138]
[1754485135962,43.08,163.45,163.42,15.10621557]
[1754485136164,5.0988586,163.49,163.45,15.10621557]
[1754485136370,47.18061248,163.48,163.47,4.50127843]
[1754485136965,47.88061248,163.48,163.44,4.50127843]
[1754485137167,4.10061248,163.47,163.44,4.50127843]
[1754485137368,4.10061248,163.46,163.44,10.61946594]
[1754485137677,4.80061248,163.45,163.42,6.11885282]
[1754485137989,43.08,163.46,163.44,4.50127843]
[1754485138168,4.10090771,163.45,163.44,4.50127843]
[1754485139175,4.10090771,163.45,163.43,15.10621557]
[1754485139368,0.03,163.45,163.43,15.10621557]
[1754485139576,47.88184112,163.44,163.42,4.50127843]
[1754485139883,43.78,163.44,163.42,4.50127843]
[1754485140884,43.78,163.44,163.43,4.50127843]
[1754485140885,43.08,163.44,163.43,4.50127843]
[1754485141085,47.88181552,163.44,163.41,0.06]
[1754485141274,9.30309395,163.43,163.41,0.06]
[1754485141486,47.18181552,163.42,163.41,0.06]
[1754485141674,47.88181552,163.42,163.41,0.06]
[1754485142591,47.18181552,163.42,163.41,0.06]
[1754485143197,47.18181552,163.42,163.41,4.56127843]
[1754485143374,47.18181552,163.42,163.41,0.06]
[1754485144074,47.86181552,163.42,163.41,0.06]
[1754485144781,4.10181552,163.42,163.41,0.06]
[1754485144988,4.10181552,163.42,163.41,4.56127843]
[1754485145195,47.18181552,163.42,163.41,4.56127843]
[1754485145593,47.18181552,163.42,163.41,10.68085495]
[1754485146376,43.08,163.42,163.41,11.34085495]
[1754485146683,0.03,163.45,163.42,15.10621557]
[1754485146891,0.03,163.45,163.44,19.607494]
[1754485147483,0.03,163.45,163.44,26.38594725]
[1754485148775,0.03,163.45,163.44,4.50127843]
[1754485148978,0.03,163.45,163.41,15.35894131]
[1754485148979,0.71,163.45,163.43,4.50127843]
[1754485149178,0.68,163.44,163.43,4.50127843]
[1754485149396,0.71,163.45,163.43,4.50127843]
[1754485149601,4.81122801,163.45,163.43,4.50127843]
[1754485149905,0.71,163.45,163.43,4.50127843]
[1754485150108,4.81122801,163.45,163.43,4.50127843]
[1754485150285,0.71,163.45,163.43,10.62010147]
[1754485150483,4.81122801,163.45,163.43,4.50127843]
[1754485150700,0.71,163.45,163.43,4.50127843]
[1754485151804,0.68,163.44,163.43,4.50127843]
[1754485152378,0.68,163.44,163.41,21.28567521]
[1754485152379,0.68,163.44,163.41,25.78695364]
[1754485152781,43.76,163.44,163.42,4.50127843]
[1754485153711,43.76,163.44,163.41,15.16621557]
[1754485153883,0.68,163.43,163.41,10.68080954]
[1754485154204,43.08,163.44,163.42,4.50127843]
[1754485154389,43.76,163.44,163.42,4.50127843]
[1754485156530,43.76,163.44,163.42,10.62039755]
[1754485156704,43.08,163.44,163.42,10.62039755]
[1754485156913,43.08,163.44,163.43,4.50127843]
[1754485157100,47.18321824,163.44,163.43,4.50127843]
[1754485157405,47.86321824,163.44,163.41,68.47950555]
[1754485157582,43.76,163.44,163.42,4.50127843]
[1754485157789,43.76,163.44,163.43,4.50127843]
[1754485158022,47.86400835,163.44,163.43,4.50127843]
[1754485158505,47.86400835,163.44,163.42,6.11909042]
[1754485158692,43.76,163.44,163.43,4.50127843]
[1754485158898,47.18436267,163.44,163.43,4.50127843]
[1754485159388,43.08,163.44,163.43,6.11882763]
[1754485159590,4.7855137,163.44,163.41,68.47941901]
[1754485159910,0.68,163.43,163.42,4.50127843]
[1754485160211,0.68,163.43,163.41,68.47941901]
[1754485160413,0.68,163.43,163.41,72.98069744]
[1754485160618,0.68,163.43,163.42,4.50127843]
[1754485160906,0.71,163.45,163.42,10.62035896]
[1754485161085,4.10562123,163.44,163.42,10.62035896]
[1754485161288,0.71,163.45,163.42,10.62035896]
[1754485161488,0.03,163.45,163.44,4.50127843]
[1754485161694,4.13667996,163.45,163.44,5.16127843]
[1754485162099,0.03,163.45,163.44,5.16127843]
[1754485162991,0.03,163.45,163.44,11.27973168]
[1754485163190,0.03,163.45,163.44,10.61973168]
[1754485163910,0.03,163.45,163.44,11.27973168]
[1754485164597,0.71,163.45,163.43,21.22493309]
[1754485164798,0.71,163.45,163.44,4.50127843]
[1754485165221,0.71,163.45,163.42,68.41908798]
[1754485165419,0.71,163.45,163.43,4.50127843]
[1754485166697,0.71,163.45,163.44,4.50127843]
[1754485167036,4.14227623,163.45,163.44,4.50127843]
[1754485168417,4.14227623,163.45,163.44,5.16127843]
[1754485168599,4.14227623,163.45,163.44,4.50127843]
[1754485169218,4.82227623,163.45,163.42,4.50127843]
[1754485169407,4.79227623,163.44,163.42,4.50127843]
[1754485169705,4.79227623,163.44,163.41,6.17953675]
[1754485169706,0.68,163.44,163.43,4.50127843]
[1754485169896,4.1191749,163.44,163.43,4.50127843]
[1754485170806,4.1191749,163.44,163.42,6.11909944]
[1754485171007,0.71,163.45,163.43,4.50127843]
[1754485171308,4.11687811,163.44,163.42,6.77909944]
[1754485171504,0.03,163.45,163.43,4.50127843]
[1754485171818,4.1169891,163.44,163.43,0.66]
[1754485172013,4.1169891,163.44,163.43,15.76621557]
[1754485172318,0.03,163.45,163.43,15.76621557]
[1754485172903,0.03,163.45,163.44,10.61973168]
[1754485173098,4.1494336,163.45,163.44,10.61973168]
[1754485173927,4.1494336,163.45,163.44,11.29973168]
[1754485174823,4.1494336,163.45,163.44,26.40594725]
[1754485176227,4.15379823,163.45,163.44,26.40594725]
[1754485177737,4.15379823,163.45,163.44,84.20466882]
[1754485178030,4.15379823,163.45,163.44,88.70594725]
[1754485178419,0.03,163.45,163.44,88.99027039]
[1754485178920,0.03,163.45,163.44,88.70594725]
[1754485179910,0.03,163.45,163.44,88.99027039]
[1754485182437,1e-08,163.45,163.44,96.03027039]
[1754485185820,1e-08,163.45,163.44,95.35027039]
[1754485186022,1e-08,163.45,163.44,26.01027039]
[1754485187423,1e-08,163.45,163.44,25.72594725]
[1754485187626,0.66000001,163.45,163.44,25.72594725]
[1754485188340,1e-08,163.45,163.44,25.72594725]
[1754485189435,1e-08,163.45,163.44,21.22466882]
[1754485189738,1e-08,163.45,163.44,25.72594725]
[1754485193332,1e-08,163.45,163.44,26.40594725]
[1754485195137,1e-08,163.45,163.44,26.69027039]
[1754485195651,1e-08,163.45,163.44,132.33027039]
[1754485196542,1e-08,163.45,163.44,158.33027039]
[1754485199548,0.03,163.47,163.45,15.10621557]
[1754485199735,0.03,163.47,163.46,89.19181714]
[1754485200133,1e-08,163.47,163.46,152.17181714]
[1754485200353,0.03,163.51,163.48,0.28432314]
[1754485200536,0.03,163.51,163.5,24.39309557]
[1754485200735,5.15474779,163.59,163.53,15.10621557]
[1754485200936,5.15474779,163.59,163.58,19.607494]
[1754485200937,4.11804502,163.59,163.58,19.607494]
[1754485201135,0.1,163.6,163.59,47.21905865]
[1754485201342,0.1,163.6,163.59,95.72033708]
[1754485201559,0.1,163.6,163.59,96.00466022]
[1754485201744,0.1,163.6,163.59,100.50593865]
[1754485201947,0.1,163.6,163.59,21.21905865]
[1754485202139,0.76,163.6,163.59,62.947494]
[1754485202346,0.1,163.6,163.59,19.607494]
[1754485202543,0.76,163.6,163.59,19.607494]
[1754485202946,0.76,163.6,163.59,15.10621557]
[1754485203149,0.1,163.6,163.59,25.72033708]
[1754485203453,0.1,163.6,163.59,15.10621557]
[1754485203630,0.1,163.6,163.59,26.00466022]
[1754485203829,0.1,163.6,163.59,26.67466022]
[1754485204033,0.1,163.6,163.59,70.01466022]
[1754485204249,0.1,163.6,163.59,96.01466022]
[1754485204449,0.76,163.6,163.59,4.50127843]
[1754485204649,0.1,163.6,163.59,45.607494]
[1754485204847,0.1,163.6,163.59,46.277494]
[1754485205055,0.1,163.6,163.59,45.607494]
[1754485205356,0.1,163.6,163.59,51.72033708]
[1754485205861,0.1,163.6,163.59,52.67466022]
[1754485206036,0.03,163.62,163.6,15.39053871]
[1754485206363,0.1,163.68,163.62,15.10621557]
[1754485206536,0.1,163.68,163.67,4.50127843]
[1754485206742,0.76,163.68,163.66,4.50127843]
[1754485207040,0.1,163.68,163.67,4.50127843]
[1754485207252,0.1,163.68,163.67,25.71734919]
[1754485207759,0.1,163.68,163.67,26.38734919]
[1754485208537,0.1,163.68,163.67,52.67167233]
[1754485208743,0.1,163.68,163.67,96.09167233]
[1754485208942,0.66,163.75,163.72,15.10621557]
[1754485209135,0.66,163.75,163.74,4.50127843]
[1754485209335,0.66,163.75,163.74,10.60852162]
[1754485209765,0.76,163.77,163.74,10.60852162]
[1754485209936,0.76,163.77,163.76,4.50127843]
[1754485210142,0.1,163.77,163.76,4.50127843]
[1754485210343,10.70747587,163.77,163.7,6.10870246]
[1754485210541,6.20619744,163.77,163.68,4.50127843]
[1754485210740,4.50127843,163.73,163.68,4.50127843]
[1754485210954,0.66,163.72,163.69,4.50127843]
[1754485211158,8.42000317,163.76,163.67,41.10621557]
[1754485211364,8.42000317,163.76,163.71,4.50127843]
[1754485211365,0.66,163.75,163.71,4.50127843]
[1754485211641,0.66,163.74,163.73,4.50127843]
[1754485212036,0.66,163.74,163.71,4.50127843]
[1754485212241,0.66,163.74,163.7,4.50127843]
[1754485212864,0.66,163.74,163.71,4.50127843]
[1754485213042,6.20612874,163.77,163.71,4.50127843]
[1754485213247,6.20612874,163.77,163.72,4.50127843]
[1754485213248,0.66,163.73,163.72,4.50127843]
[1754485213659,0.66,163.73,163.69,15.10621557]
[1754485213869,0.66,163.73,163.71,4.50127843]
[1754485214042,0.66,163.73,163.68,21.21569748]
[1754485214241,0.66,163.72,163.71,4.50127843]
[1754485214682,0.66,163.72,163.68,15.10621557]
[1754485214851,0.66,163.72,163.68,19.607494]
[1754485215151,0.66,163.72,163.69,4.50127843]
[1754485215558,0.66,163.72,163.68,19.607494]
[1754485215759,0.66,163.72,163.68,15.10621557]
[1754485215959,0.66,163.72,163.68,19.607494]
[1754485216169,0.66,163.72,163.69,4.50127843]
[1754485216482,4.50127843,163.71,163.67,15.10621557]
[1754485216662,0.66,163.7,163.67,19.607494]
[1754485216974,10.60938093,163.72,163.67,19.607494]
[1754485217164,0.66,163.69,163.68,4.50127843]
[1754485217471,4.50127843,163.73,163.68,4.50127843]
[1754485217656,0.66,163.72,163.69,4.50127843]
[1754485217850,0.66,163.71,163.69,4.50127843]
[1754485219085,0.66,163.7,163.68,4.50127843]
[1754485219268,0.66,163.7,163.67,21.21602691]
[1754485219476,0.66,163.69,163.66,21.21631649]
[1754485219642,0.66,163.69,163.67,4.50127843]
[1754485219839,5.16127843,163.71,163.67,4.50127843]
[1754485220043,4.50127843,163.71,163.67,4.50127843]
[1754485220265,0.66,163.7,163.66,19.607494]
[1754485220851,10.60953598,163.72,163.67,4.50127843]
[1754485221039,10.60953598,163.72,163.66,21.21630665]
[1754485221040,0.66,163.69,163.66,25.71758508]
[1754485222179,4.50127843,163.7,163.64,62.3]
[1754485222472,4.50127843,163.7,163.62,6.11143393]
[1754485222473,4.50127843,163.66,163.62,6.11143393]
[1754485222676,0.66,163.65,163.62,15.10621557]
[1754485222840,0.66,163.65,163.59,0.67]
[1754485222841,0.66,163.64,163.6,4.50127843]
[1754485223152,0.66,163.64,163.57,5.17127843]
[1754485223343,30.50127843,163.7,163.6,4.50127843]
[1754485223563,4.50127843,163.65,163.6,5.17127843]
[1754485223761,5.16127843,163.64,163.59,15.10621557]
[1754485223958,5.16127843,163.64,163.59,25.72031133]
[1754485224170,0.66,163.63,163.59,25.72031133]
[1754485224360,0.66,163.63,163.59,26.39031133]
[1754485224561,0.66,163.63,163.6,4.50127843]
[1754485224741,0.66,163.63,163.6,7.18259369]
[1754485224947,7.84259369,163.67,163.62,7.18259369]
[1754485225160,0.66,163.67,163.61,15.10621557]
[1754485225439,7.18259369,163.65,163.61,15.10621557]
[1754485225653,7.84259369,163.64,163.59,13.35541102]
[1754485225854,0.66,163.63,163.59,13.35541102]
[1754485226056,26.0,163.7,163.59,13.35541102]
[1754485226057,7.18259369,163.65,163.6,0.67]
[1754485226280,7.18259369,163.66,163.61,7.85259369]
[1754485226768,6.10948191,163.68,163.62,7.85259369]
[1754485226769,7.84259369,163.67,163.62,7.85259369]
[1754485226964,7.84259369,163.66,163.61,22.28880926]
[1754485227172,7.84259369,163.65,163.61,15.10621557]
[1754485227349,7.18259369,163.65,163.6,7.18259369]
[1754485227550,0.66,163.65,163.61,7.18259369]
[1754485227966,0.66,163.65,163.61,7.85259369]
[1754485228468,0.66,163.67,163.62,7.85259369]
[1754485228767,7.84259369,163.67,163.63,0.67]
[1754485228976,13.29245729,163.67,163.62,7.18259369]
[1754485229150,7.18259369,163.64,163.6,15.10621557]
[1754485229348,7.84259369,163.63,163.6,15.10621557]
[1754485229659,0.66,163.65,163.6,22.95880926]
[1754485229862,0.66,163.65,163.61,7.85259369]
[1754485229863,7.84259369,163.65,163.61,7.85259369]
[1754485230169,7.84259369,163.65,163.61,0.67]
[1754485230669,7.84259369,163.65,163.61,6.78202195]
[1754485231248,0.66,163.65,163.61,13.96461564]
[1754485231661,0.66,163.64,163.6,28.40115276]
[1754485232062,0.66,163.64,163.6,29.07115276]
[1754485232946,7.18259369,163.62,163.59,0.06]
[1754485233153,7.18259369,163.61,163.59,0.06]
[1754485233348,0.65,163.61,163.59,0.06]
[1754485234099,7.18259369,163.63,163.59,6.88282845]
[1754485234680,7.83259369,163.66,163.61,7.18259369]
[1754485234867,7.83259369,163.66,163.61,7.89259369]
[1754485235056,7.18259369,163.66,163.61,7.89259369]
[1754485235256,0.65,163.65,163.61,7.89259369]
[1754485235663,50.19994993,163.67,163.62,0.71]
[1754485235870,7.18259369,163.66,163.62,0.71]
[1754485236065,7.83259369,163.66,163.61,7.18259369]
[1754485236383,7.83259369,163.66,163.62,29.11053154]
[1754485236582,7.83259369,163.65,163.59,0.77]
[1754485236756,7.18259369,163.63,163.59,22.34880926]
[1754485236959,7.83259369,163.64,163.6,7.89259369]
[1754485237683,0.65,163.63,163.59,28.46160431]
[1754485238060,7.18259369,163.65,163.6,7.89259369]
[1754485238261,7.18259369,163.64,163.6,7.89259369]
[1754485238468,7.83259369,163.64,163.6,7.89259369]
[1754485238786,7.18259369,163.61,163.59,0.06]
[1754485239382,7.83259369,163.61,163.59,0.06]
[1754485239587,0.65,163.61,163.59,0.06]
[1754485239885,7.18259369,163.62,163.59,0.06]
[1754485240069,0.65,163.63,163.59,7.95259369]
[1754485240468,43.48,163.64,163.6,7.89259369]
[1754485240668,51.31259369,163.64,163.6,7.89259369]
[1754485241067,51.31259369,163.64,163.6,0.71]
[1754485241471,43.48,163.64,163.61,0.71]
[1754485241872,44.13,163.64,163.6,13.29502875]
[1754485242273,44.13,163.64,163.6,14.00502875]
[1754485243374,44.13,163.64,163.6,15.20201212]
[1754485243665,0.65,163.63,163.59,76.85229395]
[1754485243868,0.65,163.63,163.59,77.56229395]
[1754485244477,0.65,163.63,163.59,76.85229395]
[1754485244683,0.65,163.63,163.59,68.47271689]
[1754485244870,0.65,163.63,163.59,76.85229395]
[1754485245587,0.65,163.62,163.59,76.85229395]
[1754485245787,6.76172505,163.62,163.59,62.36]
[1754485245984,9.02957706,163.61,163.59,0.06]
[1754485246291,51.81957706,163.6,163.59,0.06]
[1754485246510,52.46957706,163.6,163.59,0.06]
[1754485246795,53.43260517,163.6,163.51,12.06848911]
[1754485247096,5.24273826,163.56,163.51,38.06848911]
[1754485247295,43.44,163.56,163.52,21.05895383]
[1754485247599,43.44,163.56,163.53,0.71]
[1754485247773,43.44,163.56,163.53,6.82506521]
[1754485248384,43.44,163.56,163.53,6.11506521]
[1754485249369,44.09,163.56,163.53,6.11506521]
[1754485249776,0.65,163.61,163.56,15.10621557]
[1754485249975,43.42,163.6,163.57,8.38730291]
[1754485250310,44.09,163.6,163.57,8.38730291]
[1754485250688,0.65,163.59,163.55,6.11433812]
[1754485250897,8.38730291,163.57,163.52,8.38730291]
[1754485251075,52.49730291,163.56,163.52,15.10621557]
[1754485251588,44.11,163.56,163.52,24.20351848]
[1754485251781,44.11,163.56,163.52,30.31883313]
[1754485252682,44.11,163.56,163.53,8.38730291]
[1754485253218,44.11,163.56,163.52,30.31883313]
[1754485253422,0.65,163.55,163.51,14.50299625]
[1754485253598,0.65,163.54,163.51,6.11569334]
[1754485254901,0.65,163.54,163.51,14.50299625]
[1754485255119,52.49730291,163.56,163.51,15.21299625]
[1754485255297,0.65,163.55,163.51,15.21299625]
[1754485255826,0.65,163.54,163.51,14.50299625]
[1754485257110,8.38730291,163.55,163.51,14.50299625]
[1754485257621,8.38730291,163.55,163.51,15.21299625]
[1754485257622,9.03730291,163.55,163.51,15.21299625]
[1754485257922,0.65,163.55,163.51,15.21299625]
[1754485258122,51.84730291,163.56,163.51,14.50299625]
[1754485258320,0.65,163.54,163.51,14.50299625]
[1754485260211,43.46,163.56,163.51,14.50299625]
[1754485260510,0.65,163.58,163.54,8.38730291]
[1754485260698,0.65,163.58,163.52,0.71]
[1754485260699,44.03,163.57,163.53,8.38730291]
[1754485260900,43.38,163.57,163.54,8.38730291]
[1754485261098,43.38,163.57,163.54,9.09730291]
[1754485261499,44.03,163.57,163.54,8.38730291]
[1754485261918,0.65,163.57,163.54,8.38730291]
[1754485262121,43.38,163.56,163.54,14.50200474]
[1754485262712,0.65,163.57,163.54,14.50200474]
[1754485263016,43.36,163.56,163.54,14.50200474]
[1754485263204,0.72,163.55,163.51,8.38730291]
[1754485263411,51.74730291,163.56,163.51,8.38730291]
[1754485263412,0.72,163.54,163.51,14.5031368]
[1754485263721,0.72,163.54,163.51,76.8031368]
[1754485264216,51.74730291,163.56,163.51,77.4831368]
[1754485264520,44.08,163.56,163.53,8.38730291]
[1754485265998,0.72,163.55,163.52,6.11508653]
[1754485266192,0.72,163.54,163.52,6.11508653]
[1754485266505,44.08,163.56,163.53,8.38730291]
[1754485267421,44.08,163.56,163.52,6.79508653]
[1754485267610,0.72,163.55,163.52,15.18238944]
[1754485267809,0.72,163.55,163.52,6.11508653]
[1754485268115,0.72,163.55,163.52,14.50238944]
[1754485268921,0.72,163.54,163.52,14.50238944]
[1754485269143,0.72,163.53,163.51,6.11569406]
[1754485269323,44.06,163.53,163.51,6.11569406]
[1754485269903,43.34,163.53,163.51,6.11569406]
[1754485270101,43.34,163.53,163.51,14.50299697]
[1754485270303,43.34,163.53,163.51,15.18299697]
[1754485270644,43.34,163.53,163.51,6.79569406]
[1754485270821,43.34,163.53,163.51,12.03874391]
[1754485271309,43.34,163.53,163.52,5.92304985]
[1754485272120,43.34,163.53,163.52,12.03850973]
[1754485273234,43.34,163.53,163.52,27.1447253]
[1754485273851,43.32,163.56,163.52,27.1447253]
[1754485274019,43.32,163.56,163.54,11.35753314]
[1754485274221,43.32,163.56,163.55,21.02926542]
[1754485274425,43.32,163.56,163.55,15.78621557]
[1754485274727,0.03,163.59,163.55,15.78621557]
[1754485274728,43.35,163.59,163.55,21.02926542]
[1754485274957,43.35,163.59,163.58,5.24304985]
[1754485275130,44.07,163.59,163.57,5.24304985]
[1754485275328,44.07,163.59,163.58,5.24304985]
[1754485275844,43.35,163.59,163.58,5.24304985]
[1754485276034,44.07,163.59,163.58,5.24304985]
[1754485276733,44.07,163.59,163.57,6.11334711]
[1754485277065,44.07,163.59,163.58,5.24304985]
[1754485277755,44.07,163.59,163.58,5.92304985]
[1754485277756,43.35,163.59,163.58,5.92304985]
[1754485278258,43.35,163.59,163.58,21.02926542]
[1754485278259,0.03,163.59,163.58,21.02926542]
[1754485278462,0.03,163.59,163.58,27.14248219]
[1754485279055,0.03,163.59,163.57,6.11350573]
[1754485279363,5.96304985,163.58,163.5,0.74]
[1754485279559,0.72,163.57,163.52,5.24304985]
[1754485279762,0.72,163.56,163.54,5.24304985]
[1754485280141,0.72,163.56,163.53,5.24304985]
[1754485280841,0.72,163.58,163.55,8.38572268]
[1754485281260,43.33,163.59,163.55,8.38572268]
[1754485281436,44.05,163.59,163.56,8.38572268]
[1754485281641,43.33,163.59,163.57,8.38572268]
[1754485281965,43.33,163.59,163.57,0.68]
[1754485282134,43.33,163.59,163.58,8.38572268]
[1754485283061,43.33,163.59,163.58,14.49893945]
[1754485284052,43.33,163.59,163.58,8.38572268]
[1754485284239,44.05,163.59,163.58,8.38572268]
[1754485284440,43.33,163.59,163.58,14.49893945]
[1754485285144,0.03,163.59,163.58,30.28515502]
[1754485286057,0.03,163.59,163.58,8.38572268]
[1754485286372,0.75,163.59,163.57,14.49920159]
[1754485286668,0.75,163.59,163.58,8.38572268]
[1754485286847,0.03,163.59,163.58,14.49893945]
[1754485289768,0.03,163.59,163.58,15.17893945]
[1754485290273,0.03,163.59,163.58,92.58515502]
[1754485290566,0.03,163.59,163.58,91.90515502]
[1754485291476,0.03,163.59,163.58,92.58515502]
[1754485292090,0.03,163.59,163.58,91.90515502]
[1754485292287,0.75,163.59,163.58,62.3]
[1754485292496,44.03,163.59,163.55,8.38572268]